[Event "Schack-SM 2023: Sverigemastarklassen"]
[Site "Helsingborg Arena, Mellersta Stenbocksgatan 14, Helsingborg, Sweden"]
[Date "2023.07.03"]
[Round "3.4"]
[White "Johansson, Linus"]
[Black "Seo, Jung Min"]
[Result "0-1"]
[TimeControl "90 minutes for 40 moves + 30 minutes for the rest of the game + 30 seconds per move from move one."]
[WhiteTitle "IM"]
[BlackTitle "IM"]
[WhiteElo "2466"]
[BlackElo "2469"]

1. d4 {[%clk 01:30:46]} {[%emt 00:00:13]} d5 {[%clk 01:30:46]} {[%emt
00:00:16]} 2. c4 {[%clk 01:30:58]} {[%emt 00:00:18]} dxc4 {[%clk 01:30:44]}
{[%emt 00:00:32]} 3. e3 {[%clk 01:31:08]} {[%emt 00:00:19]} Nf6 {[%clk
01:29:24]} {[%emt 00:01:51]} 4. Bxc4 {[%clk 01:31:31]} {[%emt 00:00:07]} e6
{[%clk 01:29:52]} {[%emt 00:00:01]} 5. Nf3 {[%clk 01:31:53]} {[%emt 00:00:08]}
c5 {[%clk 01:30:19]} {[%emt 00:00:04]} 6. O-O {[%clk 01:32:02]} {[%emt
00:00:20]} a6 {[%clk 01:30:44]} {[%emt 00:00:05]} 7. Nbd2 {[%clk 01:32:01]}
{[%emt 00:00:31]} b5 {[%clk 01:21:31]} {[%emt 00:09:44]} 8. Be2 {[%clk
01:31:06]} {[%emt 00:01:25]} Bb7 {[%clk 01:19:45]} {[%emt 00:02:17]} 9. a4
{[%clk 01:28:22]} {[%emt 00:03:13]} b4 {[%clk 01:14:12]} {[%emt 00:06:03]} 10.
b3 {[%clk 01:20:23]} {[%emt 00:08:29]} Nbd7 {[%clk 01:14:28]} {[%emt 00:00:14]}
11. Bb2 {[%clk 01:20:46]} {[%emt 00:00:07]} Be7 {[%clk 01:14:53]} {[%emt
00:00:05]} 12. a5 {[%clk 01:10:53]} {[%emt 00:10:23]} O-O {[%clk 01:15:12]}
{[%emt 00:00:10]} 13. Nc4 {[%clk 01:11:16]} {[%emt 00:00:08]} Rc8 {[%clk
01:10:39]} {[%emt 00:05:02]} 14. Nfe5 {[%clk 01:08:41]} {[%emt 00:03:05]} Bd5
{[%clk 01:04:25]} {[%emt 00:06:45]} 15. Bf3 {[%clk 00:45:03]} cxd4 {[%clk
01:04:25]} 16. Bxd4 {[%clk 00:45:03]} Nxe5 {[%clk 01:04:25]} 17. Bxe5 {[%clk
00:45:03]} Bxc4 {[%clk 01:04:25]} 18. bxc4 {[%clk 00:45:03]} Rxc4 {[%clk
01:04:25]} 19. Qe2 {[%clk 00:25:48]} {[%emt 01:12:06]} Rc5 {[%clk 00:36:50]}
{[%emt 00:03:21]} 20. Rfd1 {[%clk 00:21:55]} {[%emt 00:04:23]} Qc8 {[%clk
00:36:57]} {[%emt 00:00:23]} 21. Bd4 {[%clk 00:22:11]} {[%emt 00:00:14]} Rc7
{[%clk 00:34:58]} {[%emt 00:02:29]} 22. Bb6 {[%clk 00:21:11]} {[%emt 00:01:30]}
Rc2 {[%clk 00:33:17]} {[%emt 00:02:10]} 23. Qd3 {[%clk 00:20:06]} {[%emt
00:01:36]} Rc3 {[%clk 00:32:48]} {[%emt 00:00:59]} 24. Qd4 {[%clk 00:18:08]}
{[%emt 00:02:28]} Rc4 {[%clk 00:27:43]} {[%emt 00:05:34]} 25. Qd3 {[%clk
00:18:22]} {[%emt 00:00:16]} Rc3 {[%clk 00:27:45]} {[%emt 00:00:28]} 26. Qd4
{[%clk 00:18:47]} {[%emt 00:00:05]} h6 {[%clk 00:26:14]} {[%emt 00:02:01]} 27.
g3 {[%clk 00:18:41]} {[%emt 00:00:36]} Re8 {[%clk 00:23:15]} {[%emt 00:03:29]}
28. Bg2 {[%clk 00:12:32]} {[%emt 00:06:39]} Rc2 {[%clk 00:21:40]} {[%emt
00:02:06]} 29. h3 {[%clk 00:12:10]} {[%emt 00:00:52]} Nd5 {[%clk 00:19:55]}
{[%emt 00:02:15]} 30. Bxd5 {[%clk 00:10:16]} {[%emt 00:02:24]} Bf6 {[%clk
00:18:22]} {[%emt 00:02:03]} 31. Qxb4 {[%clk 00:09:43]} {[%emt 00:01:03]} Bxa1
{[%clk 00:18:11]} {[%emt 00:00:41]} 32. Be4 {[%clk 00:05:55]} {[%emt 00:04:18]}
Rc1 {[%clk 00:14:51]} {[%emt 00:03:50]} 33. Qe1 {[%clk 00:05:40]} {[%emt
00:00:45]} Bc3 {[%clk 00:08:07]} {[%emt 00:07:14]} 34. Qf1 {[%clk 00:06:05]}
{[%emt 00:00:06]} Rxd1 {[%clk 00:08:18]} {[%emt 00:00:19]} 35. Qxd1 {[%clk
00:06:34]} {[%emt 00:00:01]} Rf8 {[%clk 00:06:37]} {[%emt 00:02:11]} 36. Qd6
{[%clk 00:04:44]} {[%emt 00:02:20]} Qb8 {[%clk 00:05:28]} {[%emt 00:01:39]} 37.
Qe7 {[%clk 00:03:13]} {[%emt 00:02:01]} Bf6 {[%clk 00:05:14]} {[%emt 00:00:43]}
38. Qd7 {[%clk 00:02:43]} {[%emt 00:01:01]} Qc8 {[%clk 00:04:50]} {[%emt
00:00:53]} 39. Qd6 {[%clk 00:02:30]} {[%emt 00:00:43]} Re8 {[%clk 00:02:33]}
{[%emt 00:02:47]} 40. Bd3 {[%clk 00:01:03]} {[%emt 00:01:58]} Be7 {[%clk
00:00:40]} {[%emt 00:02:23]} 41. Qd4 {[%clk 00:27:58]} {[%emt 00:03:34]} Bf6
{[%clk 00:29:48]} {[%emt 00:01:22]} 42. Qe4 {[%clk 00:27:31]} {[%emt 00:00:58]}
g6 {[%clk 00:29:19]} {[%emt 00:00:59]} 43. h4 {[%clk 00:26:28]} {[%emt
00:01:33]} h5 {[%clk 00:28:50]} {[%emt 00:00:59]} 44. g4 {[%clk 00:23:38]}
{[%emt 00:03:20]} Qa8 {[%clk 00:18:41]} {[%emt 00:10:39]} 45. Qf4 {[%clk
00:19:31]} {[%emt 00:04:36]} Bg7 {[%clk 00:13:56]} {[%emt 00:05:15]} 46. gxh5
{[%clk 00:18:59]} {[%emt 00:01:03]} gxh5 {[%clk 00:14:23]} {[%emt 00:00:04]} 47.
Qg5 {[%clk 00:17:38]} {[%emt 00:01:50]} Rc8 {[%clk 00:12:59]} {[%emt 00:01:54]}
48. Bd4 {[%clk 00:17:04]} {[%emt 00:01:03]} Rc1+ {[%clk 00:13:20]} {[%emt
00:00:08]} 49. Bf1 {[%clk 00:17:30]} {[%emt 00:00:04]} Qf8 {[%clk 00:13:29]}
{[%emt 00:00:21]} 50. e4 {[%clk 00:14:47]} {[%emt 00:03:13]} Re1 {[%clk
00:13:35]} {[%emt 00:00:23]} 51. Bf6 {[%clk 00:09:17]} {[%emt 00:06:02]} Rxe4
{[%clk 00:12:44]} {[%emt 00:01:21]} 52. f3 {[%clk 00:09:44]} {[%emt 00:00:04]}
Re1 {[%clk 00:12:53]} {[%emt 00:00:20]} 53. Kf2 {[%clk 00:10:05]} {[%emt
00:00:09]} Rd1 {[%clk 00:12:48]} {[%emt 00:00:35]} 54. Bc4 {[%clk 00:09:32]}
{[%emt 00:01:04]} Rd7 {[%clk 00:02:48]} {[%emt 00:10:31]} 55. Ke2 {[%clk
00:09:07]} {[%emt 00:00:54]} Rd6 {[%clk 00:00:39]} {[%emt 00:02:39]} 56. f4
{[%clk 00:05:09]} {[%emt 00:04:27]} Rc6 {[%clk 00:00:44]} {[%emt 00:00:26]} 57.
Bd3 {[%clk 00:01:57]} {[%emt 00:03:43]} Rc5 {[%clk 00:01:07]} {[%emt 00:00:07]}
58. Qg2 {[%clk 00:00:36]} {[%emt 00:01:50]} Rxa5 {[%clk 00:00:50]} {[%emt
00:00:48]} 59. Qg3 {[%clk 00:00:50]} {[%emt 00:00:16]} Rd5 {[%clk 00:00:34]}
{[%emt 00:00:46]} 60. Bxa6 {[%clk 00:00:58]} {[%emt 00:00:22]} Kh8 {[%clk
00:00:54]} {[%emt 00:00:10]} 61. Bg5 {[%clk 00:00:44]} {[%emt 00:00:44]} Qb4
{[%clk 00:00:46]} {[%emt 00:00:37]} 62. Bd3 {[%clk 00:00:54]} {[%emt 00:00:20]}
Qb2+ {[%clk 00:01:10]} {[%emt 00:00:05]} 63. Kd1 {[%clk 00:01:06]} {[%emt
00:00:19]} Ra5 {[%clk 00:01:20]} {[%emt 00:00:20]} 64. Bc2 {[%clk 00:01:11]}
{[%emt 00:00:25]} Ra1+ {[%clk 00:01:32]} {[%emt 00:00:17]} 65. Kd2 {[%clk
00:01:30]} {[%emt 00:00:12]} Qc1+ {[%clk 00:01:57]} {[%emt 00:00:04]} 66. Kd3
{[%clk 00:01:55]} {[%emt 00:00:05]} Qa3+ {[%clk 00:02:20]} {[%emt 00:00:07]}
0-1

[Event "Schack-SM 2023: Mastarklassen-elit"]
[Site "Helsingborg Arena, Mellersta Stenbocksgatan 14, Helsingborg, Sweden"]
[Date "2023.07.03"]
[Round "3.3"]
[White "Wiedenkeller, Michael"]
[Black "Olund, Joar"]
[Result "1/2-1/2"]
[TimeControl "90 minutes for 40 moves + 30 minutes for the rest of games + 30 seconds per move from move one."]
[WhiteTitle "IM"]
[BlackTitle "FM"]
[WhiteElo "2445"]
[BlackElo "2399"]

1. d4 {[%emt 17:21:45]} d5 {[%emt 00:13:02]} 2. c4 {[%emt 00:00:38]} dxc4
{[%emt 00:00:03]} 3. e3 {[%emt 00:00:52]} Nf6 {[%emt 00:00:06]} 4. Bxc4 {[%emt
00:00:38]} e6 {[%emt 00:00:08]} 5. Nf3 {[%emt 00:00:26]} a6 {[%emt 00:00:07]} 6.
O-O {[%emt 00:00:29]} c5 {[%emt 00:00:05]} 7. dxc5 {[%emt 00:00:27]} Bxc5
{[%emt 00:00:14]} 8. Qxd8+ {[%emt 00:00:24]} Kxd8 {[%emt 00:00:02]} 9. Nbd2
{[%emt 00:00:47]} Ke7 {[%emt 00:09:08]} 10. Be2 {[%emt 00:00:41]} Nc6 {[%emt
00:09:37]} 11. b3 {[%emt 00:13:31]} h6 {[%emt 00:10:06]} 12. Bb2 {[%emt
00:06:10]} b6 {[%emt 00:01:37]} 13. a3 {[%emt 00:09:45]} Bb7 {[%emt 00:03:04]}
14. b4 {[%emt 00:03:57]} Bd6 {[%emt 00:00:55]} 15. Nc4 {[%emt 00:01:24]} Bc7
{[%emt 00:02:04]} 16. Nd4 {[%emt 00:09:02]} b5 {[%emt 00:10:58]} 17. Nxc6+
{[%emt 00:01:40]} Bxc6 {[%emt 00:00:39]} 18. Ne5 {[%emt 00:00:54]} Bd5 {[%emt
00:01:35]} 19. f3 {[%emt 00:11:26]} Bb6 {[%emt 00:02:23]} 20. Kf2 {[%emt
00:00:42]} Bb7 {[%emt 00:03:38]} 21. Rac1 {[%emt 00:08:19]} Nd5 {[%emt
00:03:33]} 22. Bd4 {[%emt 00:00:14]} Bxd4 {[%emt 00:02:00]} 23. exd4 {[%emt
00:00:02]} a5 {[%emt 00:00:17]} 24. Bxb5 {[%emt 00:07:04]} axb4 {[%emt
00:00:17]} 25. axb4 {[%emt 00:01:20]} Rhc8 {[%emt 00:02:56]} 26. Bc4 {[%emt
00:07:13]} f6 {[%emt 00:09:01]} 27. Bxd5 {[%emt 00:05:16]} Bxd5 {[%emt
00:00:17]} 28. Nd3 {[%emt 00:03:19]} Bc4 {[%emt 00:01:52]} 29. Rfd1 {[%emt
00:00:38]} Bxd3 {[%emt 00:00:28]} 30. Rxc8 {[%emt 00:00:07]} Rxc8 {[%emt
00:00:02]} 31. Rxd3 {[%emt 00:00:14]} Rc2+ {[%emt 00:00:02]} 32. Kg3 {[%emt
00:01:56]} 1/2-1/2

[Event "Schack-SM 2023: Mastarklassen"]
[Site "Helsingborg Arena, Mellersta Stenbocksgatan 14, Helsingborg, Sweden"]
[Date "2023.07.03"]
[Round "3.1"]
[White "Nilsson, Patrik 1978"]
[Black "Lundin, Jan"]
[Result "0-1"]
[TimeControl "90 minutes for 40 moves + 30 minutes for the rest of games + 30 seconds per move from move one."]
[BlackTitle "FM"]
[WhiteElo "2167"]
[BlackElo "2203"]

1. d4 {[%clk 01:30:56]} {[%emt 00:00:03]} Nf6 {[%clk 01:30:57]} {[%emt
00:00:05]} 2. Bf4 {[%clk 01:31:17]} {[%emt 00:00:08]} c5 {[%clk 01:30:46]}
{[%emt 00:00:41]} 3. d5 {[%clk 01:31:18]} {[%emt 00:00:30]} d6 {[%clk
01:30:47]} {[%emt 00:00:29]} 4. Nc3 {[%clk 01:31:23]} {[%emt 00:00:23]} a6
{[%clk 01:30:17]} {[%emt 00:01:01]} 5. a4 {[%clk 01:29:56]} {[%emt 00:01:56]}
e5 {[%clk 01:29:06]} {[%emt 00:01:43]} 6. Bd2 {[%clk 01:28:05]} {[%emt
00:02:20]} e4 {[%clk 01:27:31]} {[%emt 00:02:05]} 7. Bf4 {[%clk 01:26:23]}
{[%emt 00:02:13]} g6 {[%clk 01:24:55]} {[%emt 00:03:06]} 8. e3 {[%clk
01:25:16]} {[%emt 00:01:35]} Bg7 {[%clk 01:24:36]} {[%emt 00:00:50]} 9. Be2
{[%clk 01:18:34]} {[%emt 00:07:12]} O-O {[%clk 01:19:02]} {[%emt 00:06:05]} 10.
h4 {[%clk 01:17:16]} {[%emt 00:01:46]} h5 {[%clk 01:16:40]} {[%emt 00:02:53]}
11. Nh3 {[%clk 01:15:58]} {[%emt 00:01:47]} Re8 {[%clk 01:16:33]} {[%emt
00:00:37]} 12. Ng5 {[%clk 01:15:00]} {[%emt 00:01:29]} Bf5 {[%clk 01:07:49]}
{[%emt 00:09:14]} 13. Qd2 {[%clk 01:00:07]} {[%emt 00:15:23]} Qc7 {[%clk
01:06:47]} {[%emt 00:01:32]} 14. O-O {[%clk 00:57:53]} {[%emt 00:02:42]} Nbd7
{[%clk 01:05:57]} {[%emt 00:01:22]} 15. f3 {[%clk 00:53:24]} {[%emt 00:04:58]}
exf3 {[%clk 01:05:30]} {[%emt 00:00:58]} 16. Bxf3 {[%clk 00:53:18]} {[%emt
00:00:36]} Ne5 {[%clk 01:04:21]} {[%emt 00:01:38]} 17. e4 {[%clk 00:50:39]}
{[%emt 00:03:10]} Bd7 {[%clk 01:02:12]} {[%emt 00:02:40]} 18. Bxe5 {[%clk
00:44:31]} {[%emt 00:06:38]} Rxe5 {[%clk 01:01:24]} {[%emt 00:01:17]} 19. Be2
{[%clk 00:43:57]} {[%emt 00:01:04]} Re7 {[%clk 00:48:18]} {[%emt 00:13:36]} 20.
Qf4 {[%clk 00:38:33]} {[%emt 00:05:53]} Rf8 {[%clk 00:40:12]} {[%emt 00:08:36]}
21. Rae1 {[%clk 00:24:53]} {[%emt 00:14:11]} Bg4 {[%clk 00:38:18]} {[%emt
00:02:23]} 22. Nd1 {[%clk 00:22:09]} {[%emt 00:03:15]} Bxe2 {[%clk 00:30:09]}
{[%emt 00:08:39]} 23. Rxe2 {[%clk 00:22:34]} {[%emt 00:00:05]} Ng4 {[%clk
00:30:16]} {[%emt 00:00:23]} 24. Nf3 {[%clk 00:18:39]} {[%emt 00:04:24]} Rfe8
{[%clk 00:23:43]} {[%emt 00:07:04]} 25. c3 {[%clk 00:14:14]} {[%emt 00:04:55]}
Bh6 {[%clk 00:23:05]} {[%emt 00:01:08]} 26. Qg3 {[%clk 00:14:13]} {[%emt
00:00:31]} Rxe4 {[%clk 00:22:50]} {[%emt 00:00:46]} 27. Rxe4 {[%clk 00:13:51]}
{[%emt 00:00:51]} Rxe4 {[%clk 00:23:12]} {[%emt 00:00:07]} 28. Ng5 {[%clk
00:11:22]} {[%emt 00:03:00]} Bxg5 {[%clk 00:21:19]} {[%emt 00:02:23]} 29. hxg5
{[%clk 00:11:47]} {[%emt 00:00:05]} Qe7 {[%clk 00:20:47]} {[%emt 00:01:02]} 30.
b3 {[%clk 00:09:49]} {[%emt 00:02:28]} Qe5 {[%clk 00:20:01]} {[%emt 00:01:17]}
31. Qxe5 {[%clk 00:09:12]} {[%emt 00:01:06]} Rxe5 {[%clk 00:20:14]} {[%emt
00:00:17]} 32. c4 {[%clk 00:09:34]} {[%emt 00:00:09]} Rxg5 {[%clk 00:20:08]}
{[%emt 00:00:36]} 0-1

[Event "Schack-SM 2023: Veteran-SM 65+"]
[Site "Helsingborg Arena, Mellersta Stenbocksgatan 14, Helsingborg, Sweden"]
[Date "2023.07.03"]
[Round "3.6"]
[White "Hedin, Gunnar"]
[Black "Vrabec, Josip"]
[Result "1-0"]
[TimeControl "90 minutes for 40 moves + 30 minutes for the rest of games + 30 seconds per move from move one."]
[WhiteElo "2093"]
[BlackElo "1877"]

1. d4 {[%clk 01:30:56]} {[%emt 00:00:04]} Nf6 {[%clk 01:30:52]} {[%emt
00:00:08]} 2. c4 {[%clk 01:31:15]} {[%emt 00:00:10]} g6 {[%clk 01:31:14]}
{[%emt 00:00:09]} 3. Nc3 {[%clk 01:31:22]} {[%emt 00:00:24]} Bg7 {[%clk
01:31:38]} {[%emt 00:00:05]} 4. e4 {[%clk 01:31:36]} {[%emt 00:00:16]} d6
{[%clk 01:32:02]} {[%emt 00:00:07]} 5. h3 {[%clk 01:31:37]} {[%emt 00:00:29]}
O-O {[%clk 01:32:17]} {[%emt 00:00:14]} 6. Bg5 {[%clk 01:31:51]} {[%emt
00:00:16]} Nbd7 {[%clk 01:32:30]} {[%emt 00:00:17]} 7. Nf3 {[%clk 01:26:13]}
{[%emt 00:06:09]} c6 {[%clk 01:32:46]} {[%emt 00:00:14]} 8. Be2 {[%clk
01:24:12]} {[%emt 00:02:30]} e5 {[%clk 01:32:34]} {[%emt 00:00:42]} 9. d5
{[%clk 01:23:01]} {[%emt 00:01:42]} h6 {[%clk 01:24:51]} {[%emt 00:08:12]} 10.
Be3 {[%clk 01:22:27]} {[%emt 00:01:04]} c5 {[%clk 01:24:20]} {[%emt 00:01:01]}
11. g4 {[%clk 01:17:21]} {[%emt 00:05:36]} Nh7 {[%clk 01:21:15]} {[%emt
00:03:34]} 12. Qd2 {[%clk 01:07:59]} {[%emt 00:09:53]} g5 {[%clk 01:21:17]}
{[%emt 00:00:28]} 13. h4 {[%clk 01:07:25]} {[%emt 00:01:05]} f6 {[%clk
01:20:47]} {[%emt 00:00:58]} 14. a3 {[%clk 01:05:17]} {[%emt 00:02:39]} a6
{[%clk 01:18:42]} {[%emt 00:02:35]} 15. b4 {[%clk 01:00:36]} {[%emt 00:05:12]}
b6 {[%clk 01:18:11]} {[%emt 00:01:01]} 16. Rb1 {[%clk 01:00:01]} {[%emt
00:01:04]} Rf7 {[%clk 01:14:10]} {[%emt 00:04:30]} 17. h5 {[%clk 00:48:32]}
{[%emt 00:11:59]} Nhf8 {[%clk 01:07:35]} {[%emt 00:07:05]} 18. Nh2 {[%clk
00:48:37]} {[%emt 00:00:27]} Nb8 {[%clk 01:03:03]} {[%emt 00:05:01]} 19. bxc5
{[%clk 00:44:02]} {[%emt 00:05:06]} bxc5 {[%clk 00:58:55]} {[%emt 00:04:38]} 20.
Na4 {[%clk 00:44:19]} {[%emt 00:00:12]} Rb7 {[%clk 00:52:58]} {[%emt 00:06:26]}
21. Rxb7 {[%clk 00:41:53]} {[%emt 00:02:58]} Bxb7 {[%clk 00:53:26]} {[%emt
00:00:01]} 22. O-O {[%clk 00:41:57]} {[%emt 00:00:26]} Nbd7 {[%clk 00:48:40]}
{[%emt 00:05:15]} 23. Rb1 {[%clk 00:41:54]} {[%emt 00:00:34]} Bc8 {[%clk
00:45:54]} {[%emt 00:03:16]} 24. Nf1 {[%clk 00:40:13]} {[%emt 00:02:10]} Rb8
{[%clk 00:45:55]} {[%emt 00:00:30]} 25. Rxb8 {[%clk 00:37:27]} {[%emt
00:03:17]} Nxb8 {[%clk 00:46:23]} {[%emt 00:00:02]} 26. Ng3 {[%clk 00:31:47]}
{[%emt 00:06:08]} Nfd7 {[%clk 00:39:39]} {[%emt 00:07:13]} 27. Bd1 {[%clk
00:25:41]} {[%emt 00:06:38]} Qc7 {[%clk 00:37:14]} {[%emt 00:02:55]} 28. Qb2
{[%clk 00:22:45]} {[%emt 00:03:26]} Qb7 {[%clk 00:36:05]} {[%emt 00:01:39]} 29.
Qxb7 {[%clk 00:22:21]} {[%emt 00:00:54]} Bxb7 {[%clk 00:36:33]} {[%emt
00:00:02]} 30. Nf5 {[%clk 00:22:41]} {[%emt 00:00:11]} Bf8 {[%clk 00:36:54]}
{[%emt 00:00:08]} 31. Bd2 {[%clk 00:22:55]} {[%emt 00:00:16]} a5 {[%clk
00:32:28]} {[%emt 00:04:57]} 32. Bxa5 {[%clk 00:22:40]} {[%emt 00:00:44]} Na6
{[%clk 00:32:57]} {[%emt 00:00:01]} 33. Nb6 {[%clk 00:19:28]} {[%emt 00:03:43]}
Nxb6 {[%clk 00:32:10]} {[%emt 00:01:16]} 34. Bxb6 {[%clk 00:19:56]} {[%emt
00:00:03]} Bc8 {[%clk 00:31:57]} {[%emt 00:00:42]} 35. Ba4 {[%clk 00:20:04]}
{[%emt 00:00:22]} Kf7 {[%clk 00:26:22]} {[%emt 00:06:05]} 36. Bb5 {[%clk
00:18:54]} {[%emt 00:01:41]} Nb8 {[%clk 00:24:19]} {[%emt 00:02:33]} 37. Kf1
{[%clk 00:17:20]} {[%emt 00:02:03]} Bxf5 {[%clk 00:21:00]} {[%emt 00:03:48]} 38.
gxf5 {[%clk 00:15:59]} {[%emt 00:01:52]} Ke7 {[%clk 00:21:28]} {[%emt
00:00:02]} 39. Bc7 {[%clk 00:16:06]} {[%emt 00:00:24]} Nd7 {[%clk 00:21:12]}
{[%emt 00:00:46]} 40. a4 {[%clk 00:16:15]} {[%emt 00:00:21]} 1-0

[Event "Schack-SM 2023: Veteran-SM 50+"]
[Site "Helsingborg Arena, Mellersta Stenbocksgatan 14, Helsingborg, Sweden"]
[Date "2023.07.03"]
[Round "3.6"]
[White "Knudsen, Andre"]
[Black "Eriksson, Bengt"]
[Result "0-1"]
[TimeControl "90 minutes for 40 moves + 30 minutes for the rest of games + 30 seconds per move from move one."]
[WhiteElo "1842"]
[BlackElo "2016"]

1. d4 {[%clk 01:30:59]} Nf6 {[%clk 01:30:49]} {[%emt 00:00:12]} 2. Bf4 {[%clk
01:31:11]} {[%emt 00:00:17]} c5 {[%clk 01:28:42]} {[%emt 00:02:37]} 3. e3
{[%clk 01:31:01]} {[%emt 00:00:39]} Qb6 {[%clk 01:28:19]} {[%emt 00:00:54]} 4.
Nc3 {[%clk 01:30:07]} {[%emt 00:01:24]} a6 {[%clk 01:26:28]} {[%emt 00:02:22]}
5. Nge2 {[%clk 01:14:08]} {[%emt 00:16:28]} d6 {[%clk 01:12:01]} {[%emt
00:14:56]} 6. dxc5 {[%clk 01:05:29]} {[%emt 00:09:10]} dxc5 {[%clk 01:10:37]}
{[%emt 00:01:54]} 7. Na4 {[%clk 00:54:54]} {[%emt 00:11:04]} Qa5+ {[%clk
00:52:36]} {[%emt 00:18:32]} 8. c3 {[%clk 00:55:10]} {[%emt 00:00:13]} Nc6
{[%clk 00:37:21]} {[%emt 00:15:46]} 9. b3 {[%clk 00:55:00]} {[%emt 00:00:40]}
e5 {[%clk 00:37:29]} {[%emt 00:00:22]} 10. Bg3 {[%clk 00:55:17]} {[%emt
00:00:12]} Ne4 {[%clk 00:26:33]} {[%emt 00:11:26]} 11. Bxe5 {[%clk 00:52:24]}
{[%emt 00:03:24]} Nxf2 {[%clk 00:24:03]} {[%emt 00:03:00]} 12. Kxf2 {[%clk
00:52:44]} {[%emt 00:00:09]} Nxe5 {[%clk 00:24:23]} {[%emt 00:00:11]} 13. Qd5
{[%clk 00:50:22]} {[%emt 00:02:51]} Qc7 {[%clk 00:20:01]} {[%emt 00:04:53]} 14.
Nb6 {[%clk 00:49:29]} {[%emt 00:01:24]} Ng4+ {[%clk 00:20:08]} {[%emt
00:00:22]} 15. Kg1 {[%clk 00:49:43]} {[%emt 00:00:15]} Qxb6 {[%clk 00:20:21]}
{[%emt 00:00:18]} 16. Nf4 {[%clk 00:48:47]} {[%emt 00:01:26]} c4 {[%clk
00:16:46]} {[%emt 00:04:05]} 17. Qe4+ {[%clk 00:47:48]} {[%emt 00:01:29]} Be6
{[%clk 00:15:30]} {[%emt 00:01:46]} 18. Nd5 {[%clk 00:47:54]} {[%emt 00:00:24]}
Qc6 {[%clk 00:15:03]} {[%emt 00:00:56]} 19. Bxc4 {[%clk 00:46:25]} {[%emt
00:02:01]} O-O-O {[%clk 00:13:11]} {[%emt 00:02:21]} 20. h3 {[%clk 00:46:12]}
{[%emt 00:00:42]} Nxe3 {[%clk 00:13:22]} {[%emt 00:00:19]} 21. Kh2 {[%clk
00:44:17]} {[%emt 00:02:26]} Bd6+ {[%clk 00:11:15]} {[%emt 00:02:37]} 22. g3
{[%clk 00:44:17]} {[%emt 00:00:30]} Bxd5 {[%clk 00:10:35]} {[%emt 00:01:10]} 23.
Bxd5 {[%clk 00:44:38]} {[%emt 00:00:09]} Nxd5 {[%clk 00:10:43]} {[%emt
00:00:22]} 24. c4 {[%clk 00:44:45]} {[%emt 00:00:23]} Nf6 {[%clk 00:10:51]}
{[%emt 00:00:22]} 25. Qf5+ {[%clk 00:45:13]} {[%emt 00:00:02]} Kb8 {[%clk
00:10:43]} {[%emt 00:00:39]} 26. Rhe1 {[%clk 00:44:38]} {[%emt 00:01:04]} g6
{[%clk 00:09:57]} {[%emt 00:01:16]} 27. Qc2 {[%clk 00:44:53]} {[%emt 00:00:15]}
Qf3 {[%clk 00:09:47]} {[%emt 00:00:37]} 28. Rg1 {[%clk 00:41:51]} {[%emt
00:03:35]} Nh5 {[%clk 00:08:39]} {[%emt 00:01:38]} 29. Qg2 {[%clk 00:41:25]}
{[%emt 00:00:57]} Bxg3+ {[%clk 00:08:10]} {[%emt 00:00:58]} 30. Kh1 {[%clk
00:41:44]} {[%emt 00:00:10]} Qxg2+ {[%clk 00:08:07]} {[%emt 00:00:34]} 31. Kxg2
{[%clk 00:42:13]} Rhe8 {[%clk 00:07:21]} {[%emt 00:01:16]} 32. Kf3 {[%clk
00:42:21]} {[%emt 00:00:22]} Rd3+ {[%clk 00:06:47]} {[%emt 00:01:03]} 0-1

[Event "Schack-SM 2023: Sverigemastarklassen"]
[Site "Helsingborg Arena, Mellersta Stenbocksgatan 14, Helsingborg, Sweden"]
[Date "2023.07.03"]
[Round "3.5"]
[White "Pantzar, Milton"]
[Black "Blomqvist, Erik"]
[Result "1/2-1/2"]
[TimeControl "90 minutes for 40 moves + 30 minutes for the rest of the game + 30 seconds per move from move one."]
[WhiteTitle "IM"]
[BlackTitle "GM"]
[WhiteElo "2442"]
[BlackElo "2500"]

1. d4 {[%clk 01:30:56]} {[%emt 00:00:04]} Nf6 {[%clk 01:30:53]} {[%emt
00:00:07]} 2. c4 {[%clk 01:30:29]} {[%emt 00:00:57]} e6 {[%clk 01:31:17]}
{[%emt 00:00:07]} 3. Nf3 {[%clk 01:30:48]} {[%emt 00:00:11]} d5 {[%clk
01:31:38]} {[%emt 00:00:08]} 4. cxd5 {[%clk 01:30:26]} {[%emt 00:00:52]} exd5
{[%clk 01:31:57]} {[%emt 00:00:11]} 5. Nc3 {[%clk 01:30:43]} {[%emt 00:00:13]}
Bb4 {[%clk 01:31:32]} {[%emt 00:00:55]} 6. Bg5 {[%clk 01:28:44]} {[%emt
00:02:29]} h6 {[%clk 01:30:42]} {[%emt 00:01:20]} 7. Bxf6 {[%clk 01:27:39]}
{[%emt 00:01:35]} Qxf6 {[%clk 01:31:05]} {[%emt 00:00:07]} 8. Qa4+ {[%clk
01:27:12]} {[%emt 00:00:57]} Nc6 {[%clk 01:31:25]} {[%emt 00:00:10]} 9. e3
{[%clk 01:26:28]} {[%emt 00:01:14]} O-O {[%clk 01:31:35]} {[%emt 00:00:20]} 10.
Be2 {[%clk 01:21:57]} {[%emt 00:05:01]} Rd8 {[%clk 01:30:41]} {[%emt 00:01:24]}
11. O-O {[%clk 01:19:02]} {[%emt 00:03:26]} Bf8 {[%clk 01:20:15]} {[%emt
00:10:56]} 12. Rac1 {[%clk 01:12:12]} {[%emt 00:07:20]} a6 {[%clk 01:18:26]}
{[%emt 00:02:19]} 13. Qb3 {[%clk 01:06:33]} {[%emt 00:06:09]} Na5 {[%clk
01:17:03]} {[%emt 00:01:52]} 14. Qc2 {[%clk 01:03:37]} {[%emt 00:03:26]} Nc6
{[%clk 01:15:32]} {[%emt 00:02:01]} 15. Qb3 {[%clk 00:56:58]} {[%emt 00:07:09]}
Na5 {[%clk 01:15:38]} {[%emt 00:00:24]} 16. Qc2 {[%clk 00:55:08]} {[%emt
00:02:20]} Nc6 {[%clk 01:15:39]} {[%emt 00:00:29]} 17. Qb3 {[%clk 00:53:16]}
{[%emt 00:02:22]} 1/2-1/2